[Event "Rapid Shavuot-A 2023"]
[Site "Ramat Gan"]
[Date "2023.05.25"]
[Round "4.16"]
[White "Gurevich, Neria"]
[Black "Mordechai, Hanan"]
[Result "1/2-1/2"]
[ECO "D46"]
[WhiteElo "1804"]
[BlackElo "2366"]
[Annotator "TA"]
[PlyCount "128"]
[EventDate "2023.05.19"]
[EventType "swiss"]
[EventCountry "ISR"]
[SourceTitle "playchess.com"]
[Source "ChessBase"]
[SourceQuality "1"]
[TimeControl "900+5"]

{[%evp 14,128,34,31,33,-7,0,-7,8,0,0,0,0,-39,-35,-39,0,-65,-62,-72,-37,-49,-52,-72,-27,-67,-59,-53,-61,-51,-61,-108,-114,-110,-90,-88,-92,-116,-110,-114,-104,-112,-99,-116,0,-136,-133,-143,-147,-147,-147,-139,-146,-133,-141,-136,-130,-135,-114,-110,-57,-66,-48,-54,-53,-63,-58,-67,-67,-68,-77,-70,-37,-44,-27,-91,-105,-138,-129,-141,-145,-133,-98,-114,-117,-113,-106,-100,-34,-95,-100,-114,-72,-85,0,-83,-38,-47,-49,-45,-33,-44,-43,-27,278,0,202,168,193,18,8,0,193,0,9,0,173]} 1. d4 {[%emt 0:00:02]} Nf6 {[%emt 0:00:03]} 2. c4 {[%emt 0:00:02]} e6 {[%emt 0:00:05]} 3. Nf3 {[%emt 0:00:02]} d5 {[%emt 0:00:10]} 4. Nc3 {[%emt 0:00:03]} c6 {[%emt 0:00:01]} 5. e3 {[%emt 0:00:01]} Nbd7 {[%emt 0:00:01]} 6. Bd3 {[%emt 0:00:01]} dxc4 {[%emt 0:00:02]} 7. Bxc4 {[%emt 0:00:02]} Bd6 {[%emt 0:00:00]} 8. O-O {[%emt 0:00:06]} O-O {[%emt 0:00:02] 8...0-0 has become a bit dusty these days. D46: Semi-Slav: 5 e3 Nbd7 6 Bd3, Black avoids the Meran.} 9. Bd3 {[%emt 0:00:17]} (9. e4 $5 {[%cal Re4e5]} e5 10. Be3 $11) 9... e5 {[%emt 0:00:15]} 10. Qc2 {[%emt 0:00:32]} h6 {[%emt 0:00:06]} 11. Rd1 {[%emt 0:00:11]} Qe7 {[%emt 0:00:03]} 12. h3 {[%emt 0:00:40]} Re8 {[%emt 0:00:06] [#] aiming for ...e4.} 13. Nd2 $146 {[%emt 0:00:08]} ({Predecessor:} 13. Be2 e4 14. Nd2 Nb6 15. Nf1 Bf5 16. f3 exf3 17. Qxf5 fxe2 18. Nxe2 {1-0 Fernandes,M (1939)-Couto,P (1613) Salvador op 2023}) 13... Bc7 {[%emt 0:00:44]} 14. b3 {[%emt 0:00:39]} Nb6 {[%emt 0:01:17][%cal Bd7b6,Bb6d5,Bd5b4,Bb4d3][%mdl 32]} 15. Bb2 {[%emt 0:00:36]} ({Better is} 15. dxe5 $1 $11 Qxe5 16. Nf1 (16. Nf3 Qh5 $11)) 15... exd4 $15 {[%emt 0:00:09]} 16. exd4 {[%emt 0:00:03]} Qd6 {[%emt 0:00:16] ( -> ...Qh2+)} 17. Nf3 {[%emt 0:00:36] Repels Qh2+} Nbd5 {[%emt 0:00:01]} 18. Re1 {[%emt 0:00:38]} Bd7 {[%emt 0:00:28]} 19. Ne5 {[%emt 0:00:19]} Nb4 $36 {[%emt 0:00:10][%csl LRc2,LRd4][%mdl 2048] Black is pushing.} 20. Qd2 {[%emt 0:00:04]} Nxd3 {[%emt 0:02:38]} 21. Qxd3 {[%emt 0:00:03]} Be6 {[%emt 0:00:08]} 22. Ne2 {[%emt 0:00:37]} (22. Re3 $15) 22... Nd5 $17 {[%emt 0:00:21]} 23. Ng3 {[%emt 0:00:23]} Qd8 {[%emt 0:00:07]} 24. Qf3 {[%emt 0:00:35]} Qf6 {[%emt 0:00:33]} 25. Ne4 {[%emt 0:00:48]} Qxf3 {[%emt 0:00:16]} 26. Nxf3 {[%emt 0:00:03]} Rad8 {[%emt 0:00:08]} 27. Re2 {[%emt 0:00:23]} Nf4 {[%emt 0:00:17]} 28. Re3 {[%emt 0:00:08]} Nd5 {[%emt 0:00:19][%cal Oe6f5] And now ...Bf5! would win.} 29. Re2 $1 {[%emt 0:00:03]} Bf5 {[%emt 0:00:22]} 30. Rae1 {[%emt 0:00:04]} Ba5 {[%emt 0:00:05] Repels Nc3. A strong pair of Bishops.} 31. Ned2 {[%emt 0:09:31]} Rxe2 {[%emt 0:00:43]} 32. Rxe2 {[%emt 0:00:00]} Bd3 {[%emt 0:00:34]} 33. Re1 {[%emt 0:00:00]} f6 {[%emt 0:01:37]} 34. a3 {[%emt 0:00:00]} Kf7 {[%emt 0:00:01]} 35. b4 {[%emt 0:00:00]} Bb6 {[%emt 0:00:07]} 36. Ne4 {[%emt 0:00:00]} a5 {[%emt 0:00:06]} (36... Bxe4 $17 37. Rxe4 a5 38. bxa5 Bxa5) 37. Nc5 $15 {[%emt 0:00:00]} Ba6 {[%emt 0:00:53]} (37... Bxc5 {simplifies} 38. bxc5 a4 39. h4 b5) 38. Nxa6 bxa6 {[%emt 0:00:02]} 39. bxa5 {[%emt 0:00:00]} Bxa5 {[%emt 0:00:01]} 40. Rc1 {[%emt 0:00:00]} Rb8 {[%emt 0:00:01]} 41. Rc2 {[%emt 0:00:00]} Rb3 {[%emt 0:00:14]} 42. Bc1 {[%emt 0:00:00]} Rb1 {[%emt 0:00:35]} 43. Kh2 {[%emt 0:00:00]} Bc3 {[%emt 0:00:21]} 44. Bd2 {[%emt 0:00:00]} (44. Nd2 $11 Rb6 45. Nc4) 44... Rb3 $1 $17 {[%emt 0:00:11]} 45. Bxc3 {[%emt 0:00:00]} Rxc3 {[%emt 0:00:26][%mdl 4096] Endgame KRN-KRN} ({Much weaker is} 45... Nxc3 $6 46. Nd2 Rxa3 47. Nc4 $11) 46. Ra2 {[%emt 0:00:00]} a5 {[%emt 0:00:19][%cal Ba6a5,Ba5a4][%mdl 32]} 47. Nd2 {[%emt 0:00:00]} Rd3 {[%emt 0:00:09][%cal Oa5a4]} 48. Nc4 {[%emt 0:00:00] [#]} a4 $1 {[%emt 0:00:09][%cal Of7e7]} ({Much worse is} 48... Rxd4 $6 49. Nxa5 Ra4 50. Nxc6 $11) 49. Na5 {[%emt 0:00:00]} Rc3 {[%emt 0:00:18]} ({Inferior is} 49... Rxd4 50. Nxc6 Rc4 51. Nd8+ Ke7 52. Nb7 $15) 50. Nb7 {[%emt 0:00:00]} Ke7 {[%emt 0:00:57]} ({Black should try} 50... Nc7 $17 51. f3 Ne6 52. Nd6+ Kg6) 51. Re2+ {[%emt 0:00:00]} ({White should play} 51. Nc5 $15) 51... Kf8 {[%emt 0:00:12]} 52. Ra2 {[%emt 0:00:00]} Rc4 {[%emt 0:00:32]} 53. Na5 {[%emt 0:00:00]} Rc3 {[%emt 0:00:19]} 54. Nb7 $1 {[%emt 0:00:00]} g5 {[%emt 0:00:02]} 55. Nc5 {[%emt 0:00:00]} Rc4 {[%emt 0:00:10]} 56. Rb2 {[%emt 0:00:00]} Kf7 {[%emt 0:00:10]} 57. Rb7+ {[%emt 0:00:00]} Kg6 {[%emt 0:00:01]} 58. g4 {[%emt 0:00:00] Hoping for Nd7.} h5 $2 {[%emt 0:00:00][%mdl 8192] [#]} (58... Rxd4 $2 59. Ne6 $18) (58... f5 $11) 59. Ne6 $2 {[%emt 0:00:00]} (59. Nd7 $1 $18 {[%cal Rd7f8] Nf8+ would kill now.} hxg4 60. hxg4) 59... f5 $2 {[%emt 0:00:23]} (59... hxg4 $11 60. hxg4 f5) 60. Nf8+ $18 {[%emt 0:00:00]} Kf6 {[%emt 0:00:00]} 61. Nd7+ $2 {[%emt 0:00:00]} (61. gxh5 $18 Rxd4 62. Nh7+ {[%mdl 64] Deflection} Ke6 63. Nxg5+ Kf6 64. Nf3) 61... Ke6 $11 {[%emt 0:00:08]} 62. Nf8+ $2 {[%emt 0:00:04]} (62. gxh5 $11 Nf4 63. h6) 62... Kf6 $18 {[%emt 0:00:01]} 63. Nd7+ $2 {[%emt 0:00:03]} (63. gxh5 $18 Rxd4 64. Nh7+ {[%mdl 64] Deflection} Ke6 65. Nxg5+ Kf6 66. Nf3) 63... Ke6 $11 {[%emt 0:00:04]} 64. Nf8+ $2 {[%emt 0:00:02]} (64. gxh5 $11 Nf4 65. h4) 64... Kf6 {[%emt 0:00:14] Never resign too early!   Weighted Error Value: White=0.23 (precise) /Black=0.30} 1/2-1/2

[Event "Rapid Shavuot-A 2023"]
[Site "Ramat Gan"]
[Date "2023.05.25"]
[Round "4.17"]
[White "Vaisman, Felix"]
[Black "Michaeli, Omri"]
[Result "0-1"]
[ECO "C56"]
[WhiteElo "2121"]
[BlackElo "1874"]
[Annotator "TA"]
[PlyCount "54"]
[EventDate "2023.05.19"]
[EventType "swiss"]
[EventCountry "ISR"]
[SourceTitle "playchess.com"]
[Source "ChessBase"]
[SourceQuality "1"]
[TimeControl "900+5"]

{[%evp 19,54,-97,-96,-110,8,9,13,-6,-17,-112,-114,-79,-71,-76,-75,-102,-75,-102,-40,-34,-55,-295,-273,-298,-314,-301,-259,-271,-179,-374,-440,-380,-371,-29985,-29986,-29986,-29987]} 1. e4 {[%emt 0:00:01]} e5 {[%emt 0:00:01]} 2. Nf3 {[%emt 0:00:02]} Nc6 {[%emt 0:00:02]} 3. Bc4 {[%emt 0:00:03]} Nf6 {[%emt 0:00:02]} 4. d4 {[%emt 0:00:25]} exd4 {[%emt 0:00:05]} 5. O-O {[%emt 0:00:02]} Nxe4 {[%emt 0:00:02]} 6. Re1 {[%emt 0:00:01]} d5 {[%emt 0:00:01]} 7. Bxd5 {[%emt 0:00:01]} Qxd5 {[%emt 0:00:01]} 8. Nc3 {[%emt 0:00:01]} Qa5 {[%emt 0:00:01]} 9. Nxe4 {[%emt 0:00:03]} Be6 {[%emt 0:00:01]} 10. Bg5 {[%emt 0:00:43]} h6 {[%emt 0:00:03]} (10... Bxa2 $2 11. Nf6+ Kd8 12. Re8#) 11. Bh4 {[%emt 0:00:01] C56: Two Knights: 4 d4 exd4 5 0-0 Nxe4.} Be7 {[%emt 0:01:03]} (11... Bxa2 $2 12. Nf6+ Kd8 13. Re8#) (11... Bb4 $17 12. c3 dxc3 13. bxc3 Bxc3 14. Nxc3 Qxc3) 12. Bxe7 $11 {[%emt 0:00:05]} Nxe7 {[%emt 0:00:10]} 13. Nxd4 {[%emt 0:01:17][%cal Ob2b4] The position is equal.} O-O-O $1 {[%emt 0:00:42] [#]} 14. Qd3 $146 {[%emt 0:00:35] [#]} (14. c3 $11 {remains equal.}) ({Predecessor:} 14. c3 Qb6 15. Qc2 Bd7 16. a4 Nc6 17. Nxc6 Qxc6 18. b4 Kb8 19. b5 Qg6 20. Rab1 {0-1 Magallanes,R (2036)-Zong,D (2129) Titled Tuesday intern op 01st Sept blitz 2020 (8)}) 14... Qb6 $1 $17 {[%emt 0:01:02]} 15. Qa3 {[%emt 0:03:18]} Rxd4 {[%emt 0:00:56]} 16. Qxe7 {[%emt 0:00:03]} Qxb2 {[%emt 0:00:03][%cal Od4e4] Threatens to win with ...Rxe4!} 17. Nc5 {[%emt 0:00:24]} Rhd8 {[%emt 0:01:52] Strongly threatening ...Qa3.} 18. h3 {[%emt 0:03:10] And now Rab1 would win.} Qa3 {[%emt 0:02:56] Black is more active.} (18... Bxa2 19. Nd3 Rxd3 20. cxd3 $14) (18... Qxc2 $2 19. Rac1 $18) (18... Rd2 $17 {...Qd4 is the strong threat.} 19. Nxe6 fxe6) 19. Re3 $1 $15 {[%emt 0:00:20]} Qb4 $36 {[%emt 0:00:22][%cal Od4d7][%mdl 2048] White must now prevent ...R4d7! Black is pushing.} 20. c3 $2 {[%emt 0:02:39] This costs White the game.} (20. a3 $1 $15 Rd1+ 21. Rxd1 Rxd1+ 22. Kh2 Qf4+ 23. Rg3 Qxf2 24. Rxg7 Qg1+ 25. Kg3 Qe3+ 26. Kh2 Qg1+ 27. Kg3 Qe3+ 28. Kh2 Qe5+ 29. Rg3) 20... Rd1+ $19 21. Rxd1 {[%emt 0:00:01]} Rxd1+ {[%emt 0:00:05]} 22. Kh2 {[%emt 0:00:03]} Qf4+ {[%emt 0:00:14]} 23. Rg3 {[%emt 0:00:01]} Qxf2 {[%emt 0:01:03][%csl Gd1][%cal Rf2g1]} 24. Rf3 $2 {[%emt 0:00:55]} (24. Rxg7 Qf4+ 25. Rg3 Bxh3 26. Qe2) 24... Qg1+ {[%emt 0:00:31]} (24... Qxa2 $2 {is the wrong capture.} 25. Qf8+ Rd8 26. Qxg7 $19) 25. Kg3 {[%emt 0:00:01]} Qe1+ {[%emt 0:00:06]} ({Not} 25... Bxa2 26. Nd3 c6 27. Qf8+ Kc7 28. Qe7+ Kc8 29. Qf8+ Kc7 30. Qe7+ Kc8 $11) 26. Rf2 $2 {[%emt 0:02:12] [#]} (26. Kh2 $19 Bxa2 27. Qf8+ Rd8 28. Qxg7) 26... Qe5+ {[%emt 0:00:13]} ({Worse is} 26... Bxa2 27. Qxe1 Rxe1 28. Rxa2 $11) 27. Rf4 {[%emt 0:00:47]} g5 {[%emt 0:00:43][%mdl 64] Pin.   Weighted Error Value: White=0.73/Black=0.29 (precise)} 0-1

[Event "Rapid Shavuot-A 2023"]
[Site "Ramat Gan"]
[Date "2023.05.25"]
[Round "4.18"]
[White "Daniel, Marc D."]
[Black "Orian, Noga"]
[Result "0-1"]
[ECO "D00"]
[WhiteElo "1234"]
[BlackElo "2131"]
[Annotator "NA RC"]
[PlyCount "74"]
[EventDate "2023.05.19"]
[EventType "swiss"]
[EventCountry "ISR"]
[SourceTitle "playchess.com"]
[Source "ChessBase"]
[SourceQuality "1"]
[TimeControl "900+5"]

1. d4 {[%emt 0:00:13]} Nf6 {[%emt 0:00:02]} 2. Bg5 {[%emt 0:00:04]} d5 {[%emt 0:00:01]} 3. Bxf6 {[%emt 0:00:09]} gxf6 {[%emt 0:00:02]} 4. e3 {[%emt 0:00:17]} c5 {[%emt 0:00:15]} 5. c4 {[%emt 0:01:11]} dxc4 {[%emt 0:01:46]} 6. Bxc4 {[%emt 0:00:41]} cxd4 {[%emt 0:02:34]} 7. Qxd4 {[%emt 0:01:30]} Qxd4 {[%emt 0:00:09]} 8. exd4 {[%emt 0:00:02]} Nc6 {[%emt 0:00:09]} 9. Bb5 {[%emt 0:00:39]} Bd7 {[%emt 0:00:06]} 10. Nf3 {[%emt 0:00:17]} Rg8 {[%emt 0:00:50]} 11. O-O {[%emt 0:00:34]} O-O-O {[%emt 0:00:37]} 12. Na3 {[%emt 0:01:36]} Bh3 {[%emt 0:00:55]} 13. g3 {[%emt 0:03:17]} Bxf1 {[%emt 0:00:04]} 14. Kxf1 {[%emt 0:00:04]} e6 {[%emt 0:00:19]} 15. Nc2 {[%emt 0:00:50]} Bh6 {[%emt 0:00:13]} 16. a4 {[%emt 0:00:50]} a6 {[%emt 0:00:40]} 17. Bc4 {[%emt 0:00:29]} Bf8 {[%emt 0:02:03]} 18. Rc1 {[%emt 0:00:29]} Kb8 {[%emt 0:00:18]} 19. Rb1 {[%emt 0:00:41]} Nb4 {[%emt 0:00:28]} 20. Nfe1 {[%emt 0:01:01]} f5 {[%emt 0:00:59]} 21. Nxb4 {[%emt 0:00:12]} Bxb4 {[%emt 0:00:02]} 22. Nd3 {[%emt 0:00:14]} Rxd4 {[%emt 0:00:23]} 23. b3 {[%emt 0:00:33]} Bd6 {[%emt 0:00:29]} 24. Ke2 {[%emt 0:00:20]} f4 {[%emt 0:00:34]} 25. Kf3 {[%emt 0:00:49]} Rc8 {[%emt 0:01:19]} 26. Nb2 {[%emt 0:00:07]} b5 {[%emt 0:00:27]} 27. axb5 {[%emt 0:00:01]} axb5 {[%emt 0:00:01]} 28. Bxb5 {[%emt 0:00:07]} Rc3+ {[%emt 0:00:01]} 29. Bd3 {[%emt 0:00:07]} Rdxd3+ {[%emt 0:00:39]} 30. Nxd3 {[%emt 0:00:02]} Rxd3+ {[%emt 0:00:01]} 31. Ke4 {[%emt 0:00:02]} Rd2 {[%emt 0:00:11]} 32. gxf4 {[%emt 0:00:07]} Rxf2 {[%emt 0:00:03]} 33. f5 {[%emt 0:00:09]} Rxf5 {[%emt 0:00:02]} 34. b4 {[%emt 0:00:05]} Rf4+ {[%emt 0:00:03]} 35. Ke3 {[%emt 0:00:03]} Rxb4 {[%emt 0:00:02]} 36. Rf1 {[%emt 0:00:02]} f5 {[%emt 0:00:03]} 37. Rg1 {[%emt 0:00:02]} Bc5+ {[%emt 0:00:02]} 0-1

[Event "Rapid Shavuot-A 2023"]
[Site "Ramat Gan"]
[Date "2023.05.25"]
[Round "5.1"]
[White "Mindlin, Alon"]
[Black "Aizenberg, Benny"]
[Result "1/2-1/2"]
[ECO "A80"]
[WhiteElo "2435"]
[BlackElo "2403"]
[Annotator "TA"]
[PlyCount "161"]
[EventDate "2023.05.19"]
[EventType "swiss"]
[EventCountry "ISR"]
[SourceTitle "playchess.com"]
[Source "ChessBase"]
[SourceQuality "1"]
[TimeControl "900+5"]

{[%evp 9,161,51,85,66,72,64,71,65,65,70,72,82,82,43,60,66,57,57,60,52,57,25,58,47,72,0,0,0,30,30,30,37,73,0,45,41,33,31,25,30,32,12,22,8,21,0,0,0,24,12,50,0,34,26,39,8,0,0,54,57,77,0,0,0,0,0,0,0,0,0,0,0,0,0,0,0,0,0,0,0,0,0,0,0,0,0,0,-53,0,0,0,0,0,0,0,0,0,0,0,0,0,0,0,0,0,-47,0,-87,0,0,0,0,0,0,0,0,0,0,0,0,0,0,0,0,0,0,0,0,0,0,5097,5093,5093,0,0,0,0,0,0,0,0,0,0,0,0,0,0,0,0,0,0,0,0,0]} 1. d4 {[%emt 0:00:03]} f5 {[%emt 0:00:01]} 2. Bg5 {[%emt 0:00:03]} g6 {[%emt 0:00:02]} 3. Nc3 {[%emt 0:00:08]} Bg7 {[%emt 0:00:02]} 4. e4 {[%emt 0:00:04]} d6 {[%emt 0:00:28]} 5. Nf3 {[%emt 0:00:30]} Nf6 {[%emt 0:00:41]} 6. exf5 {[%emt 0:00:51] A80: Dutch Defence: Unusual White second moves.} Bxf5 {[%emt 0:00:06]} 7. Bc4 {[%emt 0:00:02] [#]} c6 $146 {[%emt 0:00:58]} ({Predecessor:} 7... e6 8. O-O O-O 9. h3 h6 10. Bh4 Nc6 11. Re1 d5 12. Bb5 g5 13. Bg3 Ne4 14. Bxc6 bxc6 {½-½ Prohorov,O (2086)-Iljin,T (2299) Titled Tuesday intern op 08th Mar Early blitz 2022 (4)}) 8. O-O {[%emt 0:00:34] White is more active. White is better.} d5 {[%emt 0:00:02]} 9. Bd3 {[%emt 0:00:01]} O-O {[%emt 0:00:14]} 10. Bxf5 {[%emt 0:00:31]} gxf5 {[%emt 0:00:02]} 11. Bxf6 {[%emt 0:00:01]} Rxf6 {[%emt 0:00:36]} 12. Ne2 {[%emt 0:00:23]} Qd6 {[%emt 0:00:22]} 13. Re1 {[%emt 0:00:19]} Nd7 {[%emt 0:00:08]} 14. Ng3 {[%emt 0:00:43]} e6 {[%emt 0:00:27]} 15. Qd3 {[%emt 0:00:34]} (15. Nh5 $5 {[%cal Rh5f6]}) 15... Rg6 {[%emt 0:00:32]} 16. Re2 {[%emt 0:00:34]} f4 {[%emt 0:02:28]} 17. Nf1 {[%emt 0:00:59]} (17. Nh5 $16) 17... e5 $11 {[%emt 0:00:11]} 18. dxe5 {[%emt 0:00:13]} Nxe5 {[%emt 0:00:02]} (18... Bxe5 19. Rae1 Bg7 20. Re8+ Rxe8 21. Rxe8+ Nf8 22. Nh4 $11) 19. Nxe5 {[%emt 0:00:09]} Bxe5 {[%emt 0:00:02]} 20. c3 {[%emt 0:01:24]} Qf6 {[%emt 0:00:39] [#]} 21. Qf3 {[%emt 0:00:13]} (21. Rae1 $1 $16 Bd6 22. Re8+ Rxe8 23. Rxe8+ Kg7 24. Qh3) 21... Kh8 {[%emt 0:00:06]} 22. Rae1 {[%emt 0:00:29]} Bd6 {[%emt 0:00:02]} 23. Re8+ {[%emt 0:00:21]} Rxe8 {[%emt 0:00:21]} 24. Rxe8+ {[%emt 0:00:02]} Rg8 {[%emt 0:00:03]} 25. Rxg8+ {[%emt 0:00:37]} Kxg8 $14 {[%emt 0:00:02][%cal Bh8g8,Bg8f7,Bf7g7][%mdl 4128] Endgame KQB-KQN} 26. Qg4+ {[%emt 0:00:01]} Kf7 $1 {[%emt 0:00:02]} 27. Nd2 {[%emt 0:01:43]} (27. Qh3 $5 {[%cal Rh3h7]}) 27... Qe6 {[%emt 0:00:29]} 28. Qd1 {[%emt 0:01:01]} Kg7 {[%emt 0:01:29]} 29. h3 {[%emt 0:00:23]} Qf5 {[%emt 0:00:29]} 30. a4 {[%emt 0:00:57]} (30. c4 $14) 30... Bc5 {[%emt 0:00:40]} 31. Nf3 {[%emt 0:00:35]} Qe4 {[%emt 0:00:20]} 32. b4 {[%emt 0:00:04]} Be7 {[%emt 0:00:10]} 33. Nd4 {[%emt 0:00:11]} Bf6 {[%emt 0:00:45]} (33... Kf6 $11) 34. Qg4+ {[%emt 0:00:05]} Kf7 {[%emt 0:00:01] [#]} 35. Qd7+ {[%emt 0:00:17]} (35. Nf3 $1 $16) 35... Qe7 $11 {[%emt 0:00:02]} 36. Qf5 {[%emt 0:00:09][%csl LRf4,LRh7]} Qe4 $1 {[%emt 0:02:01]} 37. Qh5+ {[%emt 0:00:03]} Kf8 {[%emt 0:00:02]} 38. Nf5 {[%emt 0:00:13]} Qe1+ {[%emt 0:00:44]} 39. Kh2 {[%emt 0:00:01]} Qxf2 {[%emt 0:00:04] Hoping for ...f3.} 40. Qh6+ {[%emt 0:00:34]} (40. Qxh7 f3 41. Qh6+ (41. Qxb7 $2 Qxg2#) 41... Kf7 42. Qh7+ Ke6 43. Ng7+ Kd7 44. Qf5+ (44. Nf5+ $2 Kd8 $19) 44... Kc7 45. Ne6+ Kb6) 40... Kf7 {[%emt 0:00:02]} 41. Qxh7+ {[%emt 0:02:25]} Ke6 {[%emt 0:00:04]} 42. Qg6 {[%emt 0:00:00]} f3 {[%emt 0:01:33]} 43. Nd4+ {[%emt 0:00:00]} Ke7 {[%emt 0:00:02]} 44. Nxf3 {[%emt 0:00:00]} Bxc3 {[%emt 0:00:12]} 45. Qh7+ {[%emt 0:00:00]} Kd6 {[%emt 0:00:06]} 46. Qg6+ {[%emt 0:00:00]} Kc7 {[%emt 0:00:06]} 47. Qf7+ {[%emt 0:00:00]} Kb6 {[%emt 0:00:01]} 48. Qf4 {[%emt 0:00:00]} ({White should try} 48. Qe7 $11 a6 49. a5+ Ka7 50. h4) 48... Qb2 {[%emt 0:00:15]} ({Black should play} 48... a5 $1 $15 49. bxa5+ Kxa5) 49. b5 $1 {[%emt 0:00:06]} cxb5 {[%emt 0:00:17]} 50. Qd6+ {[%emt 0:00:07]} Ka5 {[%emt 0:00:02]} 51. axb5 {[%emt 0:00:08]} (51. Qxd5 $2 Kxa4 52. h4 a5 53. Qxb7 b4 $19) 51... Kxb5 {[%emt 0:00:21] White must now prevent ...a5.} 52. Qxd5+ {[%emt 0:00:03]} Ka6 {[%emt 0:00:01]} 53. h4 {[%emt 0:00:05]} b5 {[%emt 0:00:08]} 54. h5 {[%emt 0:00:02]} Ka5 {[%emt 0:00:07]} 55. h6 {[%emt 0:00:02]} Qc1 {[%emt 0:00:09]} 56. Qa2+ {[%emt 0:00:20]} Kb4 {[%emt 0:00:08]} 57. Qe6 {[%emt 0:00:01]} (57. Qa6 $11 {is more appropriate.}) 57... a5 {[%emt 0:00:10]} (57... Qf4+ $15 58. Kh3 a5) 58. h7 {[%emt 0:00:03]} (58. Qd6+ $11 Kb3 59. Qd5+ Kb4 60. Qd6+ Kb3 61. Qd5+ Kb4 62. Qd6+) 58... Qc2 {[%emt 0:00:07]} ({Better is} 58... Qf4+ $17 59. Kh3 a4) 59. Qe7+ {[%emt 0:00:16]} Ka4 {[%emt 0:00:05]} 60. Qh4+ {[%emt 0:00:02]} b4 {[%emt 0:00:03] Threatens to win with ...Bh8.} 61. h8=Q {[%emt 0:00:12]} Bxh8 {[%emt 0:00:02]} 62. Qxh8 {[%emt 0:00:01] Intending Qa1+ and mate.} b3 {[%emt 0:00:05]} 63. Qa1+ {[%emt 0:00:13]} Kb4 {[%emt 0:00:01]} 64. Qe1+ {[%emt 0:00:02]} Qc3 {[%emt 0:00:06] ( -> ...Qxe1)} 65. Qe4+ {[%emt 0:00:01]} Ka3 {[%emt 0:00:02]} 66. Nd4 {[%emt 0:00:01] Nb5+ would kill now.} Qc7+ {[%emt 0:00:13]} 67. Kh3 {[%emt 0:00:04] Threatening mate with Nb5+.} Qc8+ {[%emt 0:00:05]} 68. g4 {[%emt 0:00:03] Nb5+ is the strong threat.} b2 {[%emt 0:00:04]} 69. Qd3+ {[%emt 0:00:05]} Kb4 $2 {[%emt 0:00:18][%mdl 8192]} (69... Ka2 $11 70. Qb3+ Ka1 71. Qa4+ Kb1) 70. Qb3+ $18 {[%emt 0:00:05]} Kc5 {[%emt 0:00:00]} 71. Nf5 $2 {[%emt 0:00:17]} (71. Qxb2 Qh8+ 72. Kg3 Qxd4 73. Qa3+ Qb4 74. Qe3+ Qd4 75. Qa3+ Kb5 $11) (71. Qc3+ $18 Kd5 72. Qxc8) 71... Qh8+ $11 {[%emt 0:00:00] The position is equal.} 72. Kg2 {[%emt 0:00:07]} a4 {[%emt 0:00:00]} 73. Qa3+ {[%emt 0:00:02]} (73. Qxa4 $2 b1=Q 74. Qa5+ Qb5 75. Qa7+ Kd5 76. Qf7+ Kc6 77. Qe6+ Kc7 $19) 73... Kb5 {[%emt 0:00:03]} 74. Qd3+ {[%emt 0:00:09]} Kb4 {[%emt 0:00:05]} 75. Nd4 {[%emt 0:00:00] White wants to mate with Qb5+.} Qa8+ $1 {[%emt 0:00:08]} 76. Kg1 {[%emt 0:00:06] Strongly threatening Nc2+.} (76. Kg3 $5 Qb8+ $8 77. Kh4 Qh8+ 78. Kg5 (78. Kg3 Qb8+ 79. Kg2 Qb7+ 80. Kg1 Qb6 $11) 78... Qg8+ 79. Kh4 Qh8+ 80. Kg5 (80. Kg3 Qb8+ 81. Kh4 Qh8+ $11) 80... Qe5+ 81. Kg6 Qd6+ 82. Kg5 $11) 76... Qa7 {[%emt 0:00:08]} (76... Qd5 $2 77. Nc2+ Kc5 78. Qa3+ Kc4 79. Ne3+ (79. Qxa4+ Kc3 $11) (79. Qb4+ Kd3 $11) 79... Kd4 80. Nc2+ (80. Nxd5 b1=Q+ 81. Kf2 Qc2+ 82. Ke1 Kxd5 $11) (80. Qxa4+ Kxe3 81. Qa3+ Qd3 $11) 80... Kc4 81. Ne3+ (81. Qxa4+ Kc3 $11) (81. Qb4+ Kd3 $11) 81... Kd4 82. Nf5+ (82. Nxd5 b1=Q+ 83. Kf2 Qc2+ 84. Ke1 Kxd5 $11) (82. Qxa4+ Kxe3 83. Qa3+ Kf4 $11) 82... Kc4 83. Ne3+ $18 (83. Qxa4+ Kc3 $11) (83. Qa2+ Kc5 $14)) 77. Kh2 {[%emt 0:00:10] White threatens Nc6+ and mate.} Qc7+ {[%emt 0:00:02]} 78. Kh3 {[%emt 0:00:01] Nc2+ would be deadly.} Qc3 {[%emt 0:00:02]} 79. Nc2+ {[%emt 0:00:01]} Kb3 {[%emt 0:00:05]} 80. Nd4+ {[%emt 0:00:01]} Kb4 {[%emt 0:00:02]} 81. Nc2+ {[%emt 0:00:01] Weighted Error Value: White=0.13 (very precise) /Black=0.11 (very precise)} 1/2-1/2